bitfinex/quotes_SOLUSD_20241007
["timestamp","ask_amount","ask_price","bid_price","bid_amount"]
[1728275593211,0.12549,150.41,150.37,6.6501]
[1728275593518,0.12549,150.41,150.38,3.71202227]
[1728275593728,0.12549,150.41,150.37,6.6501]
[1728275593930,0.12549,150.41,150.38,3.71202273]
[1728275594133,0.12549,150.41,150.37,6.6501]
[1728275594332,0.12549,150.41,150.38,3.71228529]
[1728275594638,0.12549,150.41,150.37,6.6501]
[1728275594835,0.12549,150.41,150.38,3.7128069]
[1728275595038,0.12549,150.41,150.37,6.6501]
[1728275595418,0.12549,150.41,150.38,3.71279515]
[1728275595633,0.12549,150.41,150.37,6.6501]
[1728275595935,0.12549,150.41,150.38,3.71328082]
[1728275596123,0.12549,150.41,150.37,6.6501]
[1728275596432,0.12549,150.41,150.38,3.71389455]
[1728275596639,0.12549,150.41,150.37,6.6501]
[1728275596815,0.12549,150.41,150.38,3.71389349]
[1728275597150,0.12549,150.41,150.37,6.6501]
[1728275597331,0.12549,150.41,150.38,3.7139314]
[1728275597642,0.12549,150.41,150.39,3.7139314]
[1728275597841,0.12549,150.41,150.37,6.6501]
[1728275598017,0.12549,150.41,150.38,3.71367145]
[1728275598212,0.12549,150.41,150.39,3.71367145]
[1728275598421,0.12549,150.41,150.37,6.6501]
[1728275598741,0.12549,150.41,150.38,3.71367286]
[1728275598921,0.12549,150.41,150.39,3.71367286]
[1728275599120,0.12549,150.41,150.37,6.6501]
[1728275599319,0.12549,150.41,150.38,3.7140859]
[1728275599540,0.12549,150.41,150.39,3.7140859]
[1728275599720,0.12549,150.41,150.37,6.6501]
[1728275599916,0.12549,150.41,150.38,3.71403138]
[1728275600138,0.25098,150.41,150.39,3.71403138]
[1728275600335,0.25098,150.41,150.37,6.6501]
[1728275600639,0.25098,150.41,150.38,3.71429966]
[1728275600827,0.25098,150.41,150.39,3.71429966]
[1728275601034,0.25098,150.41,150.37,6.6501]
[1728275601339,0.25098,150.41,150.38,3.71427218]
[1728275601541,0.25098,150.41,150.39,3.71427218]
[1728275601729,0.25098,150.41,150.37,6.6501]
[1728275601930,0.25098,150.41,150.38,3.71463221]
[1728275602235,0.25098,150.41,150.37,6.6501]
[1728275602540,0.25098,150.41,150.38,3.71501524]
[1728275602735,0.25098,150.41,150.39,3.71501524]
[1728275603044,0.25098,150.41,150.37,6.6501]
[1728275603336,0.25098,150.41,150.38,3.71509613]
[1728275603539,21.10951022,150.41,150.39,3.71509613]
[1728275603734,21.10951022,150.41,150.36,16.6262]
[1728275603941,21.10951022,150.41,150.37,3.71519151]
[1728275604243,21.10951022,150.41,150.38,3.71519151]
[1728275604545,21.10951022,150.41,150.39,3.71519151]
[1728275604717,21.10951022,150.41,150.36,16.6262]
[1728275604918,21.10951022,150.41,150.37,3.71499458]
[1728275605214,0.25098,150.39,150.38,3.71499458]
[1728275605556,7.75881022,150.39,150.37,3.71509167]
[1728275605725,0.25098,150.37,150.33,23.2812]
[1728275605926,0.25098,150.37,150.34,3.7167749]
[1728275606143,0.25098,150.37,150.35,3.7167749]
[1728275606344,0.25098,150.37,150.36,3.7167749]
[1728275606526,0.25098,150.37,150.35,3.7167749]
[1728275606732,0.25098,150.37,150.34,6.6515]
[1728275607042,0.25098,150.37,150.35,3.71682487]
[1728275607262,0.25098,150.37,150.34,6.6515]
[1728275607422,0.25098,150.37,150.35,3.71557858]
[1728275607719,0.25098,150.37,150.34,6.6515]
[1728275607917,0.25098,150.37,150.35,3.71559077]
[1728275608118,0.25098,150.37,150.34,6.6515]
[1728275608335,0.25098,150.37,150.35,3.71463531]
[1728275608540,0.25098,150.37,150.34,6.6515]
[1728275608954,0.25098,150.37,150.35,3.71459857]
[1728275609118,0.25098,150.37,150.34,6.6515]
[1728275609325,0.25098,150.37,150.35,3.71362014]
[1728275609523,0.25098,150.37,150.34,6.6515]
[1728275609839,0.25098,150.37,150.35,3.71339119]
[1728275611656,0.25098,150.37,150.34,3.71339119]
[1728275611946,0.25098,150.38,150.35,3.71339119]
[1728275612252,1.10951022,150.38,150.35,3.71228012]
[1728275612551,1.10951022,150.38,150.34,10.36318941]
[1728275615543,1.10951022,150.38,150.34,6.6515]
[1728275615847,0.12549,150.35,150.34,3.71435563]
[1728275616026,0.12549,150.35,150.33,3.71435563]
[1728275616650,0.25098,150.35,150.33,3.71435563]
[1728275616835,0.12549,150.35,150.33,3.71435563]
[1728275617028,0.25098,150.36,150.33,5.04458629]
[1728275617227,0.25098,150.36,150.33,7.98213066]
[1728275617745,0.25098,150.37,150.33,11.69648629]
[1728275617942,0.25098,150.37,150.33,10.36625563]
[1728275618142,7.75981022,150.37,150.33,3.71435563]
[1728275618951,7.75981022,150.37,150.33,3.7119561]
[1728275620440,0.25098,150.34,150.33,3.7119561]
[1728275620636,0.25098,150.34,150.31,3.7119561]
[1728275620839,1.10951022,150.34,150.32,3.7119561]
[1728275621050,1.10951022,150.34,150.31,3.7119561]
[1728275621350,1.10951022,150.34,150.32,3.7119561]
[1728275621550,1.10951022,150.34,150.31,3.7119561]
[1728275621737,1.10951022,150.34,150.32,3.7119561]
[1728275621941,1.10951022,150.34,150.31,3.7119561]
[1728275622127,1.10951022,150.34,150.32,3.7119561]
[1728275622327,0.25098,150.34,150.3,6.653]
[1728275622542,0.25098,150.34,150.31,3.71186465]
[1728275622739,0.25098,150.34,150.32,3.71186465]
[1728275622944,0.25098,150.34,150.31,3.71186465]
[1728275625453,0.25098,150.34,150.32,3.71186465]
[1728275625654,0.25098,150.34,150.31,3.71186465]
[1728275625951,0.25098,150.34,150.31,6.6528]
[1728275626255,0.25098,150.34,150.32,3.71180172]
[1728275626462,0.25098,150.34,150.31,6.6528]
[1728275626630,0.25098,150.34,150.31,10.36460172]
[1728275626831,0.25098,150.34,150.31,6.6528]
[1728275627056,0.25098,150.34,150.31,10.36460172]
[1728275627255,163.80884499,150.47,150.3,3.71180172]
[1728275627256,6.3005,150.4,150.3,3.71180172]
[1728275627454,6.6494,150.39,150.33,16.6292]
[1728275627760,6.6494,150.39,150.33,20.34100172]
[1728275627958,6.6494,150.39,150.34,6.6514]
[1728275627959,7.50793022,150.39,150.34,6.6514]
[1728275628141,7.50793022,150.39,150.34,10.36320172]
[1728275628932,0.12549,150.38,150.34,10.36320172]
[1728275629139,6.90078,150.38,150.34,10.36320172]
[1728275629763,6.90078,150.38,150.34,10.36333882]
[1728275630061,0.25098,150.38,150.34,10.36333882]
[1728275631244,0.25098,150.38,150.35,3.71193882]
[1728275633071,0.25098,150.35,150.31,6.6524]
[1728275633265,0.25098,150.35,150.34,3.71412906]
[1728275633449,6.90218,150.35,150.32,3.71412906]
[1728275633768,1.10951022,150.34,150.33,3.71412906]
[1728275633965,0.25098,150.33,150.31,3.71412906]
[1728275634169,0.25098,150.33,150.32,3.71412906]
[1728275637464,20.25098,150.33,150.31,3.71412906]
[1728275637669,21.10951022,150.33,150.29,6.6538]
[1728275637851,20.25098,150.33,150.29,6.6538]
[1728275638364,21.10951022,150.33,150.29,6.6538]
[1728275638757,0.25098,150.33,150.29,7.98439212]
[1728275638955,0.25098,150.34,150.3,6.6533]
[1728275639846,6.90258,150.34,150.3,6.6533]
[1728275640268,6.90258,150.34,150.28,3.65247569]
[1728275640572,6.90258,150.34,150.29,6.6537]
[1728275642164,0.25098,150.34,150.3,1.3305164]
[1728275642492,6.6503,150.37,150.33,6.652]
[1728275642785,20.0,150.37,150.33,6.652]
[1728275644461,0.25098,150.36,150.33,6.652]
[1728275644710,0.12549,150.36,150.34,1.33020879]
[1728275644863,0.12549,150.36,150.34,7.98160879]
[1728275645192,15.4045,150.4,150.34,1.33020879]
[1728275645359,15.4045,150.4,150.35,1.33007157]
[1728275645560,15.4045,150.4,150.35,16.627]
[1728275646184,22.0538,150.4,150.35,23.278]
[1728275646390,0.25098,150.38,150.35,23.278]
[1728275646681,0.25098,150.38,150.36,7.98067348]
[1728275646682,0.12549,150.38,150.36,7.98067348]
[1728275646984,6.6485,150.41,150.36,7.98067348]
[1728275647160,15.4976,150.43,150.35,16.627]
[1728275647357,15.4976,150.43,150.37,16.6248]
[1728275647588,7.50663022,150.42,150.37,23.2749]
[1728275647964,6.6484,150.41,150.37,16.6248]
[1728275648466,0.85853022,150.4,150.37,16.6248]
[1728275648787,6.77489,150.39,150.34,23.2803]
[1728275648993,0.12549,150.39,150.35,6.6511]
[1728275650575,0.98402022,150.39,150.35,6.6511]
[1728275651782,0.12549,150.38,150.34,23.2803]
[1728275655192,6.77529,150.38,150.34,16.6288]
[1728275655369,0.12549,150.37,150.34,16.6288]
[1728275655573,0.12549,150.37,150.34,23.2803]
[1728275663080,0.12549,150.37,150.34,24.61040451]
[1728275663998,0.12549,150.37,150.34,23.2803]
[1728275665199,0.12549,150.37,150.35,1.33008698]
[1728275665403,0.25098,150.39,150.35,7.98108917]
[1728275666595,0.25098,150.39,150.35,7.98101614]
[1728275667176,1.10951022,150.39,150.34,16.6288]
[1728275667399,7.75891022,150.39,150.34,23.2803]
[1728275668099,6.90038,150.39,150.34,23.2803]
[1728275668598,0.25098,150.37,150.31,16.6318]
[1728275668899,0.25098,150.35,150.31,16.6318]
[1728275669075,0.25098,150.35,150.31,23.2846]
[1728275669272,1.10951022,150.35,150.31,23.2846]
[1728275669483,7.76061022,150.35,150.31,16.6318]
[1728275669801,1.10951022,150.35,150.28,16.6353]
[1728275669987,0.25098,150.33,150.29,6.6537]
[1728275686221,0.25098,150.33,150.28,16.6353]
[1728275686391,0.25098,150.33,150.29,6.6537]
[1728275688311,1.10951022,150.33,150.29,6.6537]
[1728275688724,7.76191022,150.33,150.28,16.6353]
[1728275690019,6.90338,150.33,150.29,6.6537]
[1728275695628,0.85853022,150.32,150.29,6.6537]
[1728275700635,6.90338,150.33,150.29,6.6537]
[1728275702634,0.85853022,150.32,150.29,6.6537]
[1728275702833,6.90338,150.33,150.29,6.6537]
[1728275704514,0.25098,150.31,150.27,6.6546]
[1728275704728,0.12549,150.29,150.26,6.655]
[1728275704938,0.25098,150.29,150.23,15.4081]
[1728275705122,0.25098,150.29,150.24,6.6558]
[1728275705123,6.90488,150.29,150.24,6.6558]
[1728275705322,0.25098,150.29,150.25,1.33087599]
[1728275705523,0.12549,150.3,150.25,13.56985507]
[1728275705735,0.25098,150.3,150.27,6.6545]
[1728275706330,0.25098,150.3,150.26,6.6547]
[1728275706512,0.25098,150.3,150.27,1.33079591]
[1728275706709,0.25098,150.3,150.26,6.6547]
[1728275706908,0.25098,150.3,150.27,1.33079692]
[1728275707139,0.25098,150.3,150.26,6.6547]
[1728275707343,0.25098,150.3,150.27,1.33079487]
[1728275708010,0.25098,150.3,150.26,6.6547]
[1728275708218,0.25098,150.3,150.27,1.33080229]
[1728275708421,0.25098,150.3,150.26,6.6547]
[1728275708642,0.25098,150.3,150.27,1.33079903]
[1728275709013,0.25098,150.3,150.26,6.6547]
[1728275709215,0.25098,150.3,150.28,6.6541]
[1728275709743,6.90438,150.3,150.26,16.6371]
[1728275714142,0.25098,150.3,150.26,23.292]
[1728275715329,6.90428,150.3,150.26,23.292]
[1728275717457,0.25098,150.3,150.26,23.292]
[1728275720431,6.90428,150.3,150.26,23.292]
[1728275728577,6.6539,150.29,150.23,16.6407]
[1728275728861,6.6539,150.29,150.24,6.6559]
[1728275728862,0.25098,150.28,150.24,6.6559]
[1728275730461,6.6551,150.26,150.22,6.6564]
[1728275730647,0.25098,150.28,150.23,6.656]
[1728275730648,6.90518,150.28,150.23,6.656]
[1728275731461,6.90518,150.28,150.22,16.6415]
[1728275731767,6.90518,150.28,150.24,6.656]
[1728275732169,6.90518,150.28,150.22,16.6415]
[1728275732170,0.25098,150.26,150.22,16.6415]
[1728275732366,0.25098,150.26,150.22,23.2983]
[1728275733172,0.25098,150.24,150.21,0.1]
[1728275733468,6.90698,150.24,150.21,0.1]
[1728275734245,0.25098,150.24,150.21,0.1]
[1728275734862,0.25098,150.24,150.21,8.08867526]
[1728275735844,0.25098,150.24,150.21,6.7573]
[1728275736148,0.12549,150.24,150.21,6.7573]
[1728275736344,0.25098,150.26,150.22,6.6568]
[1728275736750,1.10951022,150.26,150.22,6.6568]
[1728275736975,0.25098,150.26,150.22,6.6568]
[1728275737783,1.10951022,150.26,150.22,6.6568]
[1728275738976,0.25098,150.26,150.22,6.6568]
[1728275740080,7.76471022,150.26,150.22,6.6568]
[1728275741377,6.90618,150.26,150.22,6.6568]
[1728275742179,7.76471022,150.26,150.22,6.6568]
[1728275742778,6.90618,150.26,150.21,6.7572]
[1728275743671,6.90618,150.26,150.22,6.6568]
[1728275743973,6.90618,150.26,150.22,7.98800441]
[1728275744281,0.25098,150.26,150.23,6.6562]
[1728275745061,0.25098,150.26,150.22,6.6567]
[1728275745767,6.90638,150.26,150.21,16.7426]
[1728275746171,6.90638,150.26,150.21,23.3999]
[1728275746881,0.25098,150.23,150.21,0.1]
[1728275747082,22.79088,150.23,150.21,0.1]
[1728275747297,7.76641022,150.22,150.21,0.1]
[1728275748282,27.76641022,150.22,150.21,0.1]
[1728275750382,51.54329422,150.22,150.21,0.1]
[1728275753795,50.684764,150.22,150.21,0.1]
[1728275754100,51.54329422,150.22,150.21,0.1]
[1728275755975,50.684764,150.22,150.21,0.1]
[1728275756789,51.54329422,150.22,150.21,0.1]
[1728275757097,50.684764,150.22,150.21,0.1]
[1728275758594,51.54329422,150.22,150.21,0.1]
[1728275761186,50.686064,150.19,150.18,0.7969722]
[1728275761401,51.54459422,150.19,150.18,0.7969722]
[1728275761594,50.686064,150.19,150.18,0.7969722]
[1728275762519,20.12549,150.19,150.18,0.7969722]
[1728275762812,6.93097008,150.22,150.18,0.7969722]
[1728275762990,20.0,150.2,150.18,0.7969722]
[1728275763322,20.85853022,150.21,150.18,0.7969722]
[1728275763614,6.6582,150.19,150.18,0.7969722]
[1728275764518,6.90918,150.19,150.18,0.7969722]
[1728275768501,6.90918,150.19,150.18,0.7969722]
[1728275768699,6.40918,150.19,150.18,0.7969722]
[1728275776528,0.25098,150.19,150.18,0.7969722]
[1728275779022,1.10951022,150.19,150.18,0.7969722]
[1728275780137,0.25098,150.19,150.18,0.7969722]
[1728275781043,1.10951022,150.19,150.18,0.7969722]
[1728275783240,0.25098,150.19,150.18,0.7969722]
[1728275783537,1.10951022,150.19,150.18,0.7969722]
[1728275785850,0.25098,150.19,150.18,0.7969722]
[1728275786351,1.10951022,150.19,150.18,0.7969722]
[1728275788325,0.25098,150.19,150.18,0.7969722]
[1728275788944,1.10951022,150.19,150.18,0.7969722]
[1728275789527,7.76771022,150.19,150.18,0.7969722]
[1728275791044,31.54459422,150.19,150.18,0.7969722]
[1728275791433,51.54459422,150.19,150.18,0.7969722]
[1728275799158,58.50159055,150.19,150.18,0.7969722]
[1728275804739,57.64306033,150.19,150.18,0.7969722]
[1728275805171,58.50159055,150.19,150.18,0.7969722]
[1728275806965,57.64306033,150.19,150.18,0.7969722]
[1728275807274,58.50159055,150.19,150.18,0.7969722]
[1728275807484,57.64306033,150.19,150.18,0.7969722]
[1728275808864,58.50159055,150.19,150.18,0.7969722]
[1728275809275,57.64306033,150.19,150.18,0.7969722]
[1728275809473,58.50159055,150.19,150.18,0.7969722]
[1728275810274,57.64306033,150.19,150.18,0.7969722]
[1728275810478,58.50159055,150.19,150.18,0.7969722]
[1728275810784,57.64306033,150.19,150.18,0.7969722]
[1728275811687,58.50159055,150.19,150.18,0.7969722]
[1728275812687,57.64306033,150.19,150.18,0.7969722]
[1728275813785,58.50159055,150.19,150.18,0.7969722]
[1728275815788,57.64306033,150.19,150.18,0.7969722]
[1728275816989,58.50159055,150.19,150.18,0.7969722]
[1728275819386,33.61519633,150.19,150.18,0.7969722]
[1728275820488,26.78369,150.19,150.18,0.7969722]
[1728275820787,50.686064,150.19,150.18,0.7969722]
[1728275823688,26.90918,150.19,150.18,0.7969722]
[1728275823887,20.25098,150.19,150.18,0.7969722]
[1728275824086,6.6574,150.21,150.18,0.7969722]
[1728275824291,13.60996947,150.23,150.18,7.4552722]
[1728275824500,7.51543022,150.22,150.18,17.3090722]
[1728275824690,6.6573,150.21,150.18,17.3090722]
[1728275824893,0.85853022,150.2,150.18,17.3090722]
[1728275825582,0.12549,150.19,150.18,17.3090722]
[1728275849408,0.12549,150.21,150.18,17.3090722]
[1728275849605,20.25098,150.21,150.18,17.3090722]
[1728275851432,0.85853022,150.2,150.18,0.7969722]
[1728275851628,0.25098,150.19,150.18,0.7969722]
[1728275854153,50.686064,150.19,150.18,0.7969722]
[1728275857659,26.90918,150.19,150.18,0.7969722]
[1728275858344,50.686064,150.19,150.18,0.7969722]
[1728275866361,57.6421342,150.19,150.18,0.7969722]
[1728275867652,58.50066442,150.19,150.18,0.7969722]
[1728275868370,57.6421342,150.19,150.18,0.7969722]
[1728275869386,43.776884,150.18,150.11,16.7538]
[1728275869556,0.25098,150.14,150.11,16.7538]
[1728275869755,1.10951022,150.14,150.11,16.7538]
[1728275871865,0.25098,150.14,150.11,16.7538]
[1728275872578,1.10951022,150.14,150.11,16.7538]
[1728275873053,6.661,150.13,150.11,0.1]
[1728275873254,6.91148,150.14,150.11,0.1]
[1728275874357,0.25098,150.12,150.11,0.1]
[1728275879078,6.91228,150.12,150.11,0.1]
[1728275879461,0.25098,150.12,150.11,0.1]
[1728275883728,1.10951022,150.12,150.11,0.1]
[1728275884221,0.25098,150.12,150.11,0.1]
[1728275884422,1.10951022,150.12,150.11,0.1]
[1728275885319,24.88639422,150.12,150.11,0.1]
[1728275885628,30.689164,150.12,150.11,0.1]
[1728275886134,0.25098,150.12,150.11,0.1]
[1728275894242,26.6596,150.16,150.11,0.1]
[1728275894451,156.0583,150.19,150.14,6.6604]
[1728275894659,156.0583,150.19,150.12,23.3138]
[1728275894660,6.6591,150.17,150.12,23.3138]
[1728275894820,0.85853022,150.16,150.12,23.3138]
[1728275895017,0.85853022,150.16,150.12,16.6525]
[1728275895232,6.6595,150.16,150.12,16.6525]
[1728275896047,0.25098,150.15,150.12,16.6525]
[1728275896543,1.10951022,150.15,150.12,16.6525]
[1728275896722,0.25098,150.15,150.12,16.6525]
[1728275898233,6.6595,150.16,150.12,23.3137]
[1728275898234,20.25098,150.16,150.12,23.3137]
[1728275898732,0.12549,150.14,150.12,16.6525]
[1728275899447,0.25098,150.12,150.11,0.1]
[1728275900234,6.6605,150.14,150.11,0.1]
[1728275900235,20.25098,150.14,150.11,0.1]
[1728275909739,0.25098,150.14,150.11,1.43222867]
[1728275910058,20.25098,150.15,150.11,8.09382867]
[1728275910235,20.25098,150.15,150.11,6.7616]
[1728275919367,0.85853022,150.14,150.11,0.1]
[1728275919573,6.661,150.13,150.11,0.1]
[1728275920575,0.25098,150.13,150.11,0.1]
[1728275921247,6.91198,150.13,150.11,0.1]
[1728275923082,1.10951022,150.12,150.11,0.1]
[1728275923880,0.25098,150.12,150.11,0.1]
[1728275925966,6.91228,150.12,150.11,0.1]
[1728275931556,50.689164,150.12,150.11,0.1]
[1728275940391,30.689164,150.12,150.11,0.1]
[1728275940693,50.689164,150.12,150.11,0.1]
[1728275950892,26.91228,150.12,150.11,0.1]
[1728275951097,20.0,150.12,150.11,0.1]
[1728275953501,20.25098,150.12,150.11,0.1]
[1728275958104,26.91228,150.12,150.11,0.1]
[1728275960081,20.25098,150.12,150.11,0.1]
[1728275961489,26.91228,150.12,150.11,0.1]
[1728275967207,20.25098,150.12,150.11,0.1]
[1728275967903,20.0,150.12,150.11,0.1]
[1728275970206,20.25098,150.12,150.11,0.1]
[1728275970385,26.91228,150.12,150.11,0.1]
[1728275975813,6.91228,150.12,150.11,0.1]
[1728275975991,26.91228,150.12,150.11,0.1]
[1728275976819,0.12549,150.12,150.11,0.1]
[1728275994433,6.78679,150.12,150.11,0.1]
[1728275994607,6.91228,150.12,150.11,0.1]
[1728275998711,0.12549,150.12,150.11,0.1]
[1728276001238,6.6604,150.14,150.11,0.1]
[1728276001442,0.12549,150.13,150.11,0.1]
[1728276006646,6.78679,150.12,150.11,0.1]
[1728276006943,6.91228,150.12,150.11,0.1]
[1728276010524,50.689164,150.12,150.11,0.1]
[1728276010845,51.54769422,150.12,150.11,0.1]
[1728276011045,50.689164,150.12,150.11,0.1]
[1728276015861,26.91228,150.12,150.11,0.1]
[1728276034144,50.689164,150.12,150.11,0.1]
[1728276034345,0.25098,150.06,150.04,15.3156]
[1728276034650,1.10951022,150.06,150.03,0.8432968]
[1728276034842,0.25098,150.06,150.03,0.8432968]
[1728276035039,26.91578,150.04,150.03,0.8432968]
[1728276035659,16.6585,150.08,150.03,0.8432968]
[1728276035660,6.6635,150.07,150.03,0.8432968]
[1728276035856,20.25098,150.06,150.03,2.17617988]
[1728276036256,20.25098,150.06,150.03,0.8432968]
[1728276037574,0.25098,150.06,150.03,0.8432968]
[1728276037872,20.25098,150.07,150.04,1.33280663]
[1728276038167,20.25098,150.07,150.03,0.8432968]
[1728276038371,20.25098,150.07,150.04,6.6648]
[1728276040176,20.25098,150.07,150.03,7.5084968]
[1728276045675,20.25098,150.07,150.03,0.8432968]
[1728276045868,6.91458,150.07,150.03,0.8432968]
[1728276046571,0.85853022,150.06,150.03,0.8432968]
[1728276046771,6.91458,150.07,150.03,0.8432968]
[1728276047854,6.91458,150.07,150.03,2.17619549]
[1728276048373,6.91458,150.07,150.03,0.8432968]
[1728276049473,0.25098,150.07,150.03,0.8432968]
[1728276049681,6.91578,150.04,150.03,0.8432968]
[1728276049858,26.91578,150.04,150.03,0.8432968]
[1728276050779,20.25098,150.04,150.03,0.8432968]
[1728276051155,0.25098,150.04,150.03,0.8432968]
[1728276054655,0.25098,150.06,150.03,0.8432968]
[1728276055293,20.25098,150.07,150.03,7.5083968]
[1728276055866,20.0,150.06,150.03,0.8432968]
[1728276056081,0.25098,150.05,150.03,0.8432968]
[1728276061570,6.6605,150.14,150.09,6.6626]
[1728276061798,15.3459,150.18,150.05,12.23897908]
[1728276061973,6.66,150.15,150.1,6.6618]
[1728276062175,0.85853022,150.14,150.1,6.6618]
[1728276062983,20.85853022,150.14,150.1,6.6618]
[1728276063180,20.0,150.14,150.1,6.6618]
[1728276063779,20.0,150.15,150.11,6.6617]
[1728276063989,0.25098,150.14,150.11,6.6617]
[1728276064709,0.25098,150.14,150.09,16.6558]
[1728276064874,0.25098,150.14,150.1,6.6621]
[1728276065495,0.25098,150.14,150.09,16.6558]
[1728276065675,0.25098,150.14,150.09,23.3183]
[1728276067097,6.91138,150.14,150.09,23.3183]
[1728276074995,0.25098,150.12,150.09,23.3183]
[1728276076182,0.25098,150.13,150.09,23.3183]
[1728276080881,0.25098,150.14,150.1,1.33235718]
[1728276081101,6.91098,150.15,150.11,6.6616]
[1728276086018,6.6596,150.16,150.12,6.6612]
[1728276086191,20.0,150.15,150.11,6.6616]
[1728276086390,0.85853022,150.14,150.11,6.6616]
[1728276087515,0.25098,150.13,150.11,6.6616]
[1728276088007,0.25098,150.14,150.11,6.6616]
[1728276090738,0.25098,150.14,150.1,6.6621]
[1728276090900,7.77001022,150.14,150.09,33.0846]
[1728276091104,7.77001022,150.14,150.09,39.7472]
[1728276091812,1.10951022,150.14,150.1,6.6622]
[1728276092000,0.25098,150.14,150.1,6.6622]
[1728276092203,1.10951022,150.14,150.1,6.6622]
[1728276093026,7.77001022,150.14,150.09,39.7469]
[1728276093235,1.10951022,150.14,150.1,6.6621]
[1728276093528,0.25098,150.14,150.1,6.6621]
[1728276094821,1.10951022,150.14,150.1,6.6621]
[1728276095918,0.25098,150.14,150.11,6.6617]
[1728276098942,1.10951022,150.14,150.11,6.6617]
[1728276102711,0.85853022,150.15,150.09,16.4288]
[1728276102912,0.25098,150.16,150.11,16.6535]
[1728276103209,1.10951022,150.16,150.12,6.6612]
[1728276104539,21.10951022,150.16,150.12,6.6612]
[1728276108738,20.25098,150.16,150.12,6.6612]
[1728276109743,0.25098,150.16,150.13,1.33215201]
[1728276110044,0.25098,150.16,150.14,6.6601]
[1728276110239,0.25098,150.16,150.13,16.6514]
[1728276110447,0.25098,150.16,150.13,23.3122]
[1728276115651,0.12549,150.17,150.14,6.6603]
[1728276115836,0.98402022,150.17,150.14,6.6603]
[1728276116451,0.25098,150.17,150.14,6.6603]
[1728276118248,1.10951022,150.17,150.13,23.3122]
[1728276118427,0.25098,150.17,150.13,23.3122]
[1728276118629,7.76871022,150.17,150.13,16.6514]
[1728276121160,1.10951022,150.17,150.09,16.4288]
[1728276121337,0.25098,150.14,150.11,6.6617]
[1728276122254,0.25098,150.15,150.11,1.33213363]
[1728276122462,0.25098,150.15,150.13,6.6607]
[1728276122631,0.25098,150.16,150.13,6.6607]
[1728276123445,0.25098,150.16,150.13,7.99271834]
[1728276124548,16.143,150.2,150.13,1.33201834]
[1728276124858,26.6578,150.2,150.15,6.6596]
[1728276125061,26.6578,150.2,150.15,7.99140996]
[1728276125363,0.85853022,150.19,150.15,6.6596]
[1728276125961,0.12549,150.18,150.15,6.6596]
[1728276126676,0.25098,150.18,150.15,6.6596]
[1728276130186,0.25098,150.16,150.12,6.6609]
[1728276130554,0.25098,150.16,150.13,6.6608]
[1728276131452,0.25098,150.17,150.13,6.6608]
[1728276131765,1.10951022,150.17,150.13,6.6608]
[1728276132889,0.25098,150.17,150.13,6.6608]
[1728276133578,0.25098,150.17,150.14,6.6603]
[1728276138963,0.25098,150.17,150.13,6.6607]
[1728276141991,20.25098,150.17,150.11,16.6541]
[1728276142163,0.25098,150.15,150.12,6.6613]
[1728276145463,0.25098,150.16,150.12,6.6613]
[1728276145663,1.10951022,150.16,150.12,6.6613]
[1728276149184,6.66,150.15,150.11,23.3158]
[1728276149361,0.12549,150.13,150.11,23.3158]
[1728276149561,0.12549,150.15,150.12,6.6613]
[1728276152077,0.12549,150.15,150.12,7.99341054]
[1728276152465,0.12549,150.15,150.12,1.33211054]
[1728276152691,0.12549,150.15,150.11,23.3155]
[1728276153093,0.12549,150.15,150.12,6.6612]
[1728276154081,0.98402022,150.15,150.12,6.6612]
[1728276155092,6.78679,150.13,150.08,6.663]
[1728276155270,0.12549,150.11,150.08,6.663]
[1728276155479,0.12549,150.11,150.09,7.99490936]
[1728276155889,0.12549,150.11,150.09,6.6625]
[1728276156089,0.25098,150.12,150.09,6.6625]
[1728276159480,0.25098,150.12,150.1,6.6621]
[1728276159687,0.25098,150.13,150.1,6.6621]